[Event "Italian-ch Teams-B 2022"]
[Site "Montesilvano"]
[Date "2022.04.20"]
[Round "2.2"]
[White "Borgo, Giulio"]
[Black "Boraso, Alessio"]
[Result "1-0"]
[ECO "B40"]
[WhiteElo "2345"]
[BlackElo "2286"]
[Annotator "TA"]
[PlyCount "55"]
[EventDate "2022.04.19"]
[EventType "team-tourn"]
[EventCountry "ITA"]
[SourceTitle "playchess.com"]
[Source "ChessBase"]
[SourceQuality "1"]
[TimeControl "40/5400+30:1800+30"]

{[%evp 9,55,7,-3,0,18,14,18,-7,24,11,7,8,20,0,138,143,166,161,238,222,219,205,304,286,560,558,554,559,532,433,583,575,989,977,925,608,625,506,500,506,2402,2290,2527,2162,2416,2371,2402,2253]} 1. e4 {[%emt 0:02:53]} c5 {[%emt 0:00:04]} 2. Nf3 {[%emt 0:00:06]} e6 {[%emt 0:00:05]} 3. b3 {[%emt 0:00:40]} b6 {[%emt 0:00:14]} 4. Bd3 {[%emt 0:08:08]} Nc6 {[%emt 0:04:37]} 5. O-O {[%emt 0:02:51]} Bb7 {[%emt 0:07:18]} 6. Re1 {[%emt 0:02:34] B40: Sicilian: 2...e6, Unusual lines.} Qc7 {[%emt 0:06:50] 6...Be7 is the modern continuation.} 7. Bf1 {[%emt 0:04:51]} Nf6 {[%emt 0:05:59]} 8. Bb2 {[%emt 0:06:18] The position is equal.} d6 {[%emt 0:08:54] [#]} 9. c4 $146 {[%emt 0:09:05]} ({Predecessor:} 9. Na3 a6 10. d4 cxd4 11. Nxd4 Be7 12. c4 Nxd4 13. Qxd4 Nxe4 14. Qxg7 O-O-O 15. Qxf7 {0-1 (40) Yudasin,L (2558)-Stripunsky,A (2543) New York 2003}) 9... e5 {[%emt 0:04:07]} 10. Nc3 {[%emt 0:01:36][%cal Bb1c3,Bc3d5,Bd5f4,Bf4h3][%mdl 32]} Bc8 {[%emt 0:02:40]} 11. h3 {[%emt 0:04:43]} g5 {[%emt 0:07:42]} (11... Be7 $11) 12. Nxg5 $16 {[%emt 0:16:37]} Rg8 {[%emt 0:03:39] [#]} 13. f4 {[%emt 0:04:47]} h6 {[%emt 0:13:35] [#]} (13... Qd7 $142 14. Nd5 Qd8) 14. Nf3 $1 $18 {[%emt 0:19:06]} Bxh3 {[%emt 0:13:16]} 15. Nd5 {[%emt 0:01:08]} Qd8 {[%emt 0:04:08]} (15... Nxd5 {might work better.} 16. exd5 Nd4 17. Nxd4 (17. fxe5 O-O-O $18) 17... cxd4 18. Bxd4 Bg4 19. fxe5 O-O-O) 16. fxe5 {[%emt 0:02:48]} Ng4 {[%emt 0:01:26]} (16... Nd7 {keeps fighting.} 17. exd6 Bxd6) 17. exd6 {[%emt 0:05:46] White is clearly winning.} Qxd6 {[%emt 0:01:58]} 18. e5 {[%emt 0:00:15]} Qg6 {[%emt 0:00:31]} 19. Nf4 {[%emt 0:01:15]} Qf5 {[%emt 0:01:08]} 20. Nxh3 {[%emt 0:00:19]} Nd4 {[%emt 0:00:40]} 21. Bxd4 {[%emt 0:02:32]} cxd4 {[%emt 0:00:02]} 22. Qe2 {[%emt 0:00:58]} d3 {[%emt 0:00:54]} 23. Qe4 {[%emt 0:00:10]} Bc5+ {[%emt 0:00:08]} 24. Kh1 {[%emt 0:00:07][%cal Bg1h1,Bh1h2,Bh2g3][%mdl 32]} Qh5 {[%emt 0:01:25]} (24... Qxe4 $142 25. Rxe4 O-O-O) 25. Qxa8+ {[%emt 0:01:18]} Ke7 {[%emt 0:00:01]} 26. Qxg8 {[%emt 0:01:20] Threatens to win with e6.} Nf2+ {[%emt 0:00:18]} 27. Kh2 {[%emt 0:00:28]} Ng4+ {[%emt 0:00:03]} 28. Kg3 {[%emt 0:00:44] Black did not feel at home in the position after the opening.  Weighted Error Value: White=0.33/Black=0.61} 1-0

[Event "Italian-ch Teams-B 2022"]
[Site "Montesilvano"]
[Date "2022.04.20"]
[Round "2.3"]
[White "Lanzani, Mario"]
[Black "Trabattoni, Franco"]
[Result "1-0"]
[ECO "A34"]
[WhiteElo "2266"]
[BlackElo "2230"]
[Annotator "TA"]
[PlyCount "81"]
[EventDate "2022.04.19"]
[EventType "team-tourn"]
[EventCountry "ITA"]
[SourceTitle "playchess.com"]
[Source "ChessBase"]
[SourceQuality "1"]
[TimeControl "40/5400+30:1800+30"]

{[%evp 9,81,49,57,53,56,31,37,44,39,45,39,27,71,73,97,66,75,70,88,0,40,43,90,69,89,96,80,40,34,38,70,70,70,52,61,33,31,25,23,15,12,49,48,14,18,8,8,-14,-8,-16,0,0,24,0,0,0,8,0,0,0,0,0,91,93,145,125,126,94,280,174,29987,29988,29999,-4614]} 1. c4 {[%emt 0:00:26]} Nf6 {[%emt 0:00:35]} 2. Nc3 {[%emt 0:00:15]} c5 {[%emt 0:02:53]} 3. e3 {[%emt 0:01:21][%cal Be2e3,Be3e4,Be4d5][%mdl 32]} g6 {[%emt 0:02:11]} 4. d4 {[%emt 0:00:37][%cal Bd2d4,Bd4d5][%mdl 32]} b6 {[%emt 0:01:10]} 5. d5 {[%emt 0:02:30]} d6 {[%emt 0:00:04]} 6. e4 {[%emt 0:01:47] A34: Symmetrical English: 2 Nc3, lines with ...d5.} Bg7 {[%emt 0:00:05]} 7. Bd3 {[%emt 0:04:18]} O-O {[%emt 0:01:35] [#]} 8. Nf3 $146 {[%emt 0:04:06] White is slightly better.} ({Predecessor:} 8. Bg5 h6 9. Bh4 e6 10. h3 exd5 11. exd5 Re8+ 12. Nge2 Nbd7 13. f4 Qc7 14. O-O {1-0 (33) Vescovi,G (2525)-Mannion,S (2370) Elista 1998}) 8... e6 {[%emt 0:06:36]} 9. O-O {[%emt 0:00:28]} exd5 {[%emt 0:00:33]} 10. exd5 {[%emt 0:00:57]} h6 {[%emt 0:01:02]} 11. h3 {[%emt 0:00:33]} a6 {[%emt 0:00:17]} 12. a4 {[%emt 0:02:25]} Nh5 {[%emt 0:07:29]} 13. Qc2 {[%emt 0:12:18]} Nd7 {[%emt 0:06:22]} 14. g4 {[%emt 0:02:10]} (14. Re1 $16) 14... Nhf6 {[%emt 0:00:05]} (14... Ne5 $5 {[%cal Re5f3]} 15. Nxe5 Bxe5 16. gxh5 Qh4 $11) 15. Bf4 {[%emt 0:00:20]} Ne8 {[%emt 0:02:24]} (15... h5 $14 {is superior.}) 16. Rae1 {[%emt 0:07:30] 0x0.001a398f4a34dp-1022s more active pieces. The black rooks are badly placed.} (16. Rfe1 {is more complex.} h5 17. gxh5 Ne5 18. Re3) 16... Ne5 {[%emt 0:29:29]} 17. Nxe5 {[%emt 0:09:59]} dxe5 {[%emt 0:00:17]} 18. Rxe5 {[%emt 0:10:39]} Bxe5 {[%emt 0:13:17]} 19. Bxe5 {[%emt 0:00:28][%cal Od3g6]} f6 {[%emt 0:02:49]} 20. Bf4 {[%emt 0:18:07]} f5 {[%emt 0:01:55]} 21. Bxh6 {[%emt 0:01:20]} Ng7 $1 {[%emt 0:01:11]} 22. Qd2 {[%emt 0:07:50]} Qh4 {[%emt 0:03:15]} 23. Qg5 {[%emt 0:00:52]} Qxh3 {[%emt 0:01:24] [#]} 24. Qxg6 $1 {[%emt 0:00:20][%csl Gh6][%cal Rg6g7]} Qxg4+ {[%emt 0:09:00]} 25. Qxg4 {[%emt 0:00:17] Chess con chili.} fxg4 {[%emt 0:00:01]} 26. a5 {[%emt 0:02:03]} (26. Re1 $5 {[%cal Re1e5]}) 26... Rb8 {[%emt 0:01:43]} 27. axb6 {[%emt 0:01:48]} Rxb6 {[%emt 0:00:04]} 28. Bc1 {[%emt 0:02:02] A strong pair of Bishops.} Bf5 {[%emt 0:00:42]} 29. Be2 {[%emt 0:02:26]} Rc8 {[%emt 0:00:54]} 30. Kg2 {[%emt 0:00:51]} Ne8 {[%emt 0:00:12]} 31. Kg3 {[%emt 0:00:38]} Nd6 {[%emt 0:00:35]} 32. Bf4 {[%emt 0:00:10]} Kf7 {[%emt 0:00:30]} 33. Bxd6 {[%emt 0:01:31]} (33. Rh1 {seems wilder.} Be4 34. Re1 Bc2 35. Bxd6 Rxd6 36. Bxg4 Rg6 37. f3) 33... Rxd6 {[%emt 0:00:03]} 34. Bxg4 {[%emt 0:00:55]} Bxg4 {[%emt 0:00:16]} (34... Rg6 $5 35. f3 Rcg8 $11) 35. Kxg4 $11 {[%emt 0:00:10][%mdl 4096] Endgame KRR-KRN} Rb6 {[%emt 0:00:15]} (35... Re8 $11 36. f4 Rb6) 36. Ne4 $16 {[%emt 0:00:42]} Kg7 {[%emt 0:00:26]} (36... Ra8 $142) 37. Ra1 {[%emt 0:00:29]} Rxb2 {[%emt 0:01:29]} 38. Rxa6 {[%emt 0:00:17] f4 is the strong threat.} Rb4 $2 {[%emt 0:00:03]} (38... Re2 $16 39. Re6 Rf8) 39. Ra7+ {[%emt 0:00:27]} Kh8 $2 {[%emt 0:00:04] [#]} (39... Kh6 $18 40. Nd6 Rf8) 40. Nf6 {[%emt 0:00:32][%csl Gf6][%cal Ra7h7]} Ra8 {[%emt 0:07:15]} 41. Ra6 $4 {[%emt 0:34:06][%mdl 40960] Weighted Error Value: White=0.15 (very precise) /Black=0.41. Loss on time!?} 1-0

[Event "Italian-ch Teams-B 2022"]
[Site "Montesilvano"]
[Date "2022.04.20"]
[Round "2.3"]
[White "Signorelli, Gaetano"]
[Black "Brunello, Sabino"]
[Result "0-1"]
[ECO "A28"]
[WhiteElo "2196"]
[BlackElo "2500"]
[Annotator "TA"]
[PlyCount "72"]
[EventDate "2022.04.19"]
[EventType "team-tourn"]
[EventCountry "ITA"]
[SourceTitle "playchess.com"]
[Source "ChessBase"]
[SourceQuality "1"]
[TimeControl "40/5400+30:1800+30"]

{[%evp 12,71,0,0,0,8,39,0,0,0,0,-10,0,-6,32,26,32,37,39,32,33,29,23,41,48,51,80,75,104,102,116,54,76,65,64,-17,-23,-23,-23,-104,-114,-63,-65,-112,-127,-283,-169,-166,-158,-166,-169,-162,-164,-183,-94,-123,-134,-29997,-29998,-29998,-29999,-29999]} 1. c4 {[%emt 0:00:06]} e5 {[%emt 0:01:20]} 2. Nc3 {[%emt 0:00:14]} Nf6 {[%emt 0:01:35]} 3. Nf3 {[%emt 0:00:29]} Nc6 {[%emt 0:02:00]} 4. e3 {[%emt 0:00:35]} Bb4 {[%emt 0:02:48]} 5. Qc2 {[%emt 0:00:16]} O-O {[%emt 0:00:10]} 6. Nd5 {[%emt 0:00:19]} Re8 {[%emt 0:03:35]} 7. Qf5 {[%emt 0:00:32]} d6 {[%emt 0:12:41] A28: English Opening: Four Knights Variation.} 8. Nxf6+ $1 {[%emt 0:00:11]} gxf6 {[%emt 0:00:45]} 9. Qc2 {[%emt 0:00:38]} (9. Qh5 $5 {[%cal Ra2a3]}) 9... d5 {[%emt 0:05:42] The position is equal.} 10. a3 {[%emt 0:02:07] Threatens to win with cxd5.} Bf8 {[%emt 0:00:36]} 11. cxd5 {[%emt 0:00:20]} Qxd5 {[%emt 0:00:07]} 12. Bc4 {[%emt 0:01:50]} Qd7 {[%emt 0:00:40]} (12... Bf5 $5 {[%cal Rd5f3]} 13. d3 (13. Bxd5 Bxc2 14. d4 Rad8 $15) (13. Qxf5 Qxc4 14. d3 Qc2 $11) 13... Qd7 $11) 13. d3 {[%emt 0:20:25] [#]} b5 $146 {[%emt 0:14:03]} ({Predecessor:} 13... Qg4 14. b4 Bg7 15. O-O a6 16. Bb2 Be6 17. Rac1 Rad8 18. Nd2 f5 19. Nb3 Bxc4 20. Qxc4 Qxc4 21. Rxc4 Rxd3 {1-0 (38) Golikov,D (2319)-Ibrahimli,M (2379) Porto Carras 2018}) 14. Bxb5 {[%emt 0:30:52]} Nb4 {[%emt 0:00:20]} 15. Bxd7 {[%emt 0:01:46]} (15. Qc4 c6 $1 16. axb4 cxb5 $15) 15... Nxc2+ {[%emt 0:00:09]} 16. Kd2 {[%emt 0:00:11]} Bxd7 {[%emt 0:00:47]} 17. Kxc2 {[%emt 0:00:09]} e4 {[%emt 0:00:19]} 18. dxe4 {[%emt 0:05:31]} Rxe4 {[%emt 0:00:07]} 19. Bd2 {[%emt 0:10:36]} Bf5 {[%emt 0:09:30]} 20. Kd1 {[%emt 0:01:54]} Rg4 {[%emt 0:02:07]} 21. Ne1 {[%emt 0:03:37]} (21. Nd4 Bd3 $14) (21. Rg1 $16) 21... Rd8 {[%emt 0:04:06]} 22. f3 {[%emt 0:01:36]} Rg6 {[%emt 0:05:04]} 23. Ke2 {[%emt 0:05:46]} (23. Rc1 $1 $14) 23... Bc8 $11 {[%emt 0:01:10][%mdl 1024] Black has compensation.} 24. Bc3 {[%emt 0:02:21]} f5 {[%emt 0:00:33][%cal Of5f4] aiming for ...f4!} 25. g3 {[%emt 0:01:58]} (25. Nc2 $11 {remains equal.}) 25... Ba6+ $17 {[%emt 0:11:17]} 26. Kf2 {[%emt 0:00:12]} Bg7 $1 {[%emt 0:00:18][%cal Bf8g7,Bg7b2,Bb2d4][%mdl 32]} 27. Ba5 {[%emt 0:04:20]} (27. Bxg7 $1 $15 Rd2+ 28. Kg1 Kxg7 29. b4) 27... Rd5 $1 {[%emt 0:03:14]} (27... Bxb2 $6 28. Ra2 Rb6 29. Bb4 $11) 28. Bxc7 {[%emt 0:02:32]} (28. Bb4 $17 {is a better defense.} Rb6 29. Rc1) 28... Rd2+ {[%emt 0:01:47]} ({Wrong is} 28... Bxb2 $2 29. Rb1 Rd2+ 30. Kg1 $19) (28... Rc6 $142 29. Bf4 Rd2+ 30. Kg1 Bxb2) 29. Kg1 $19 {[%emt 0:00:08]} Bxb2 {[%emt 0:01:01]} 30. Ba5 {[%emt 0:01:32]} Re2 {[%emt 0:05:03]} ({Weaker is} 30... Bxa1 31. Bxd2 Rd6 32. Bb4 $11) 31. Rd1 {[%emt 0:00:19]} Rc6 {[%emt 0:02:17] Hoping for ...Bc1.} 32. h4 {[%emt 0:01:18] [#]} f4 {[%emt 0:06:00]} ({Better is} 32... Rc1 $1 $19 {[%cal Rc1d1]} 33. Rxc1 Bxc1) 33. exf4 {[%emt 0:01:32] [#]} Rc1 $1 $36 {[%emt 0:00:38][%mdl 2112] Deflection. White is under strong pressure. 0x0.001a398f4aa0dp-1022s more active pieces. The white rooks are badly placed.} ({Reject} 33... Bxa3 $6 34. Rh2 $11) 34. Rxc1 {[%emt 0:00:43][%mdl 8192]} (34. Rd6 $17) 34... Bd4+ {[%emt 0:00:25] A strong pair of Bishops. Black mates.} 35. Kf1 {[%emt 0:00:08]} Rf2+ {[%emt 0:00:05]} 36. Kg1 {[%emt 0:00:24]} Rd2# {[%emt 0:00:04] Weighted Error Value: White=0.52/Black=0.11 (very precise)} 0-1

[Event "Italian-ch Teams-B 2022"]
[Site "Montesilvano"]
[Date "2022.04.20"]
[Round "2.4"]
[White "Dvirnyy, Danyyil"]
[Black "Buonanno, Raffaele"]
[Result "1-0"]
[ECO "B07"]
[WhiteElo "2496"]
[BlackElo "2191"]
[Annotator "TA"]
[PlyCount "61"]
[EventDate "2022.04.19"]
[EventType "team-tourn"]
[EventCountry "ITA"]
[SourceTitle "playchess.com"]
[Source "ChessBase"]
[SourceQuality "1"]
[TimeControl "40/5400+30:1800+30"]

{[%evp 9,61,31,33,35,55,34,56,17,29,14,19,28,70,77,112,111,76,65,154,151,152,126,168,121,212,209,200,207,201,169,189,200,186,133,149,154,166,147,147,160,147,150,150,145,191,212,187,202,222,217,310,227,445,449]} 1. e4 {[%emt 0:00:14]} d6 {[%emt 0:00:26]} 2. d4 {[%emt 1:31:16]} Nf6 {[%emt 0:00:46]} 3. Nc3 {[%emt 0:00:00]} g6 {[%emt 0:00:45]} 4. Be3 {[%emt 0:00:00]} a6 {[%emt 0:01:15]} 5. Qd2 {[%emt 0:00:00]} b5 {[%emt 0:01:34]} 6. f3 {[%emt 0:00:00] B07: Pirc Defence: Miscellaneous Systems.} Bb7 {[%emt 0:01:47]} 7. O-O-O {[%emt 0:00:00]} Nbd7 {[%emt 0:03:11]} 8. h4 {[%emt 0:00:00] White is slightly better.} h5 {[%emt 0:01:40]} 9. Nh3 {[%emt 0:00:00]} Bg7 {[%emt 0:00:45]} 10. Kb1 {[%emt 0:00:00]} e5 {[%emt 0:08:50]} 11. d5 {[%emt 0:00:00] [#]} b4 $146 {[%emt 0:18:45] [#]} ({Predecessor:} 11... Nb6 12. b3 Rc8 13. Nf2 O-O 14. g4 c6 15. dxc6 Rxc6 16. Bg5 Qc7 17. Bxf6 Bxf6 {0-1 (37) Hess,M (2373)-Schmidt,P (2398) Germany 2020}) 12. Na4 {[%emt 0:00:00]} a5 {[%emt 0:00:12]} 13. c3 {[%emt 0:00:00]} bxc3 {[%emt 0:07:26]} (13... c5 $14) 14. Qxc3 $16 {[%emt 0:00:00]} O-O {[%emt 0:05:33]} 15. Rc1 {[%emt 0:00:00]} Nb6 {[%emt 0:19:33]} 16. Bb5 {[%emt 0:00:00]} (16. Qxc7 Nxa4 17. Bb5 (17. Qxb7 Rb8 $11) 17... Nc5 18. Rxc5 dxc5 $11) ({White should play} 16. Nxb6 $18 cxb6 17. Qa3) 16... Ba6 {[%emt 0:10:10]} (16... Nfxd5 $16 17. exd5 Nxd5) 17. Nxb6 $18 {[%emt 0:00:00]} ({Not} 17. Qxc7 {[#]} Nbxd5 $1 18. exd5 (18. Qxd8 Rfxd8 19. exd5 Bxb5 $15) 18... Bxb5 19. Qxd8 Rfxd8 $15) 17... cxb6 {[%emt 0:00:13]} 18. Bxa6 {[%emt 0:00:00]} Rxa6 {[%emt 0:00:07]} 19. Qc7 {[%emt 0:00:00]} b5 {[%emt 0:03:12]} 20. Qb7 {[%emt 0:00:00][%csl LRa6,LRb5]} Qa8 {[%emt 0:00:06]} 21. Rc7 {[%emt 0:00:00]} (21. Qxb5 $18 {Strongly threatening Rc6.} Rb8 22. Qa4 (22. Qe2 a4 $18)) 21... Rb8 {[%emt 0:05:23]} 22. Qxa8 {[%emt 0:00:00] 0x0.000e62c4cf4ddp-1022s more active pieces.} Raxa8 {[%emt 0:00:02]} 23. Ba7 {[%emt 0:00:00]} Rc8 {[%emt 0:00:16]} 24. Rhc1 {[%emt 0:00:00][%cal Bh1c1,Bc1c7,Bc7b7,Bb7b6][%mdl 32]} Rxc7 {[%emt 0:00:36]} 25. Rxc7 {[%emt 0:00:00]} Ne8 {[%emt 0:05:38]} 26. Rb7 {[%emt 0:00:00]} f6 {[%emt 0:00:48]} (26... Bh6 $16 {was necessary.} 27. Ng5 f6) 27. Be3 {[%emt 0:02:15]} b4 {[%emt 0:00:41]} 28. Kc2 {[%emt 0:02:53]} Rc8+ {[%emt 0:01:37]} 29. Kd3 {[%emt 0:00:09]} Nc7 {[%emt 0:01:14]} (29... f5 {was worth a try.} 30. Ng5 Bh6) 30. Rb6 {[%emt 0:00:09] aiming for Rc6.} Bf8 $2 {[%emt 0:00:24]} (30... Ne8 {is a better defense.} 31. Ra6 b3 32. axb3 Rb8) 31. Rc6 {[%emt 0:00:14] Weighted Error Value: White=0.16 (very precise) /Black=0.32} 1-0

[Event "Italian-ch Teams-B 2022"]
[Site "Montesilvano"]
[Date "2022.04.20"]
[Round "2.4"]
[White "Simoli, Sergio"]
[Black "Mazzilli, Piero"]
[Result "0-1"]
[ECO "B87"]
[WhiteElo "2262"]
[BlackElo "2296"]
[Annotator "TA"]
[PlyCount "48"]
[EventDate "2022.04.19"]
[EventType "team-tourn"]
[EventCountry "ITA"]
[SourceTitle "playchess.com"]
[Source "ChessBase"]
[SourceQuality "1"]
[TimeControl "40/5400+30:1800+30"]

{[%evp 18,48,0,-59,0,-75,-75,-95,-95,-100,-32,-80,-64,-169,-154,-166,-164,-154,-57,-137,-156,-198,-246,-293,-281,-591,-586,-589,-571,-583,-446,-535,-515]} 1. e4 {[%emt 0:00:04]} c5 {[%emt 0:00:48]} 2. Nf3 {[%emt 0:00:12]} d6 {[%emt 0:00:03]} 3. d4 {[%emt 0:00:08]} cxd4 {[%emt 0:00:02]} 4. Nxd4 {[%emt 0:00:09]} Nf6 {[%emt 0:00:02]} 5. Nc3 {[%emt 0:00:10]} a6 {[%emt 0:00:01]} 6. Bc4 {[%emt 0:00:55]} e6 {[%emt 0:00:18]} 7. Bb3 {[%emt 0:00:10]} Be7 {[%emt 0:07:03]} 8. Be3 {[%emt 0:01:55]} b5 {[%emt 0:01:51][%cal Bb7b5,Bb5b4][%mdl 32]} 9. Qe2 {[%emt 0:04:05]} O-O {[%emt 0:05:17]} 10. O-O-O {[%emt 0:03:53]} ({Better is} 10. f3 $11) 10... Bd7 {[%emt 0:17:45] B87: Sicilian Scheveningen/Najdorf: 6 Bc4, with early ...b5.} (10... b4 $15 11. Na4 Bd7) 11. f3 {[%emt 0:11:29]} (11. a3 $1 $11) 11... b4 $17 {[%emt 0:07:59]} 12. Nb1 {[%emt 0:15:56]} Qc7 {[%emt 0:15:24] Black is better.} 13. g4 {[%emt 0:03:33]} Rc8 {[%emt 0:00:52]} (13... a5 $17 {Strongly threatening ...a4.} 14. g5 Nh5) 14. g5 $15 {[%emt 0:06:30]} Ne8 {[%emt 0:01:15] [#] And now ...a5 would win.} 15. Rhg1 $146 {[%emt 0:04:13]} ({White should try} 15. f4 $15 Nc6 16. f5 exf5 17. exf5 (17. Nxf5 Be6 $11) 17... Nxd4 18. Rxd4) ({Predecessor:} 15. h4 Nc6 16. h5 Na5 17. Rhg1 Nxb3+ 18. axb3 a5 19. g6 a4 20. bxa4 Bxa4 21. Rd2 {0-1 (39) Zapata Cuartas,J-De la Roche,J Medellin 2000}) 15... a5 $19 {[%emt 0:16:01] [#] ...a4 is the strong threat.} 16. a4 {[%emt 0:04:17]} Na6 {[%emt 0:03:02]} 17. Nb5 {[%emt 0:07:03]} Qb7 {[%emt 0:00:12]} (17... Bxb5 $17 18. Qxb5 (18. axb5 Nc5 $17) 18... Nc5) 18. Bc4 {[%emt 0:03:13]} ({White should play} 18. h4 $15) 18... Nc5 $17 {[%emt 0:01:37]} 19. b3 {[%emt 0:00:35]} Bxb5 {[%emt 0:01:16]} 20. axb5 {[%emt 0:08:05]} a4 {[%emt 0:00:02]} 21. Kb2 {[%emt 0:05:18]} (21. Bxc5 Rxc5 22. bxa4) 21... axb3 $19 {[%emt 0:04:56] Black is clearly winning.} 22. Bxb3 {[%emt 0:02:01]} Qa7 {[%emt 0:01:59] [#] ( -> ...Qa1+)} 23. Bxc5 {[%emt 0:02:13]} Rxc5 {[%emt 0:00:29]} 24. Kc1 {[%emt 0:01:08]} Bxg5+ {[%emt 0:00:00] Weighted Error Value: White=0.54/Black=0.25 (precise)} 0-1

[Event "Italian-ch Teams-B 2022"]
[Site "Montesilvano"]
[Date "2022.04.20"]
[Round "2.4"]
[White "Lapiccirella, Daniele"]
[Black "Botta, Massimiliano"]
[Result "0-1"]
[ECO "E81"]
[WhiteElo "2180"]
[BlackElo "2217"]
[Annotator "TA"]
[PlyCount "59"]
[EventDate "2022.04.19"]
[EventType "team-tourn"]
[EventCountry "ITA"]
[SourceTitle "playchess.com"]
[Source "ChessBase"]
[SourceQuality "1"]
[TimeControl "40/5400+30:1800+30"]

{[%evp 17,59,46,47,62,87,59,54,61,39,47,76,0,0,0,0,0,0,0,0,0,21,14,43,32,104,89,145,161,200,152,160,135,151,182,233,93,222,43,272,0,234,196,229,-170]} 1. d4 {[%emt 0:00:05]} Nf6 {[%emt 0:06:34]} 2. c4 {[%emt 0:00:05]} g6 {[%emt 0:00:09]} 3. Nc3 {[%emt 0:00:05]} Bg7 {[%emt 0:00:04]} 4. e4 {[%emt 0:00:11]} d6 {[%emt 0:00:06]} 5. f3 {[%emt 0:00:05]} O-O {[%emt 0:01:15]} 6. Be3 {[%emt 0:00:04]} c5 {[%emt 0:00:36]} 7. Nge2 {[%emt 0:01:03]} Nc6 {[%emt 0:00:48]} 8. d5 {[%emt 0:00:05]} Ne5 {[%emt 0:00:18]} 9. Ng3 {[%emt 0:00:06]} h5 {[%emt 0:11:08]} 10. Be2 {[%emt 0:00:18] [#] E81: King's Indian: Sämisch: 6th move deviations (including 6 Be3 c6).} Nfd7 $146 {[%emt 0:04:07]} ({Predecessor:} 10... h4 11. Nf1 e6 12. f4 Nxc4 13. Bxc4 b5 14. Bxb5 exd5 15. exd5 h3 16. Qd2 Rb8 17. Bc6 Ne4 18. Nxe4 Rxb2 {0-1 (27) Hess,R (2591)-Kollars,D (2585) Chess.com INT 2020}) 11. O-O {[%emt 0:31:21]} Nb6 {[%emt 0:05:46]} 12. Qb3 {[%emt 0:01:06] White is slightly better.} h4 {[%emt 1:05:39]} 13. Nh1 {[%emt 0:00:14]} f5 {[%emt 0:00:00]} 14. f4 {[%emt 0:01:59]} ({Better is} 14. Bg5 $16) 14... Ng4 $11 {[%emt 0:00:00]} 15. Bxg4 {[%emt 0:00:06]} fxg4 {[%emt 0:00:00]} 16. g3 {[%emt 0:17:09]} e5 {[%emt 0:00:00]} 17. dxe6 {[%emt 0:01:01]} Bxe6 {[%emt 0:00:00]} 18. Nd5 {[%emt 0:00:03]} Rf7 {[%emt 0:00:00]} 19. Rad1 {[%emt 0:03:02]} h3 {[%emt 0:00:00]} 20. Nf2 {[%emt 0:07:05]} Nd7 {[%emt 0:00:00]} (20... Nxd5 $14 21. cxd5 Bd7) 21. Rd2 {[%emt 0:09:04]} ({Resist} 21. Qxb7 Nb6 22. Qa6 Bxb2 $11) 21... Nb8 {[%emt 0:00:00]} (21... Nb6 $142) 22. Qd1 $16 {[%emt 0:10:20]} Qc8 {[%emt 0:00:00]} 23. e5 {[%emt 0:00:11]} Nc6 {[%emt 0:00:00]} 24. exd6 {[%emt 0:03:27]} Nd4 {[%emt 0:00:00]} 25. Bxd4 {[%emt 0:01:53]} cxd4 {[%emt 0:00:00]} (25... Bxd4 $142 26. Rxd4 cxd4 27. Qxd4 Qc6) 26. Rxd4 {[%emt 0:01:57]} (26. Re1 $18 {has better winning chances.}) 26... Qc6 {[%emt 0:00:00]} (26... Bxd4 $16 27. Qxd4 Qc6) 27. Re1 $2 {[%emt 0:01:48]} (27. Rd2 $18) 27... Bf5 $2 {[%emt 0:00:00]} ({Black should play} 27... Bxd4 $14 28. Qxd4 Bxd5 29. cxd5 Qxd6) 28. b4 $2 {[%emt 0:09:55]} ({White has to play} 28. Rd2 $18) 28... Rd8 $2 {[%emt 0:00:00]} (28... Bxd4 $11 29. Qxd4 Qxd6) 29. c5 {[%emt 0:00:33] [#] Strongly threatening Rd2.} b6 {[%emt 0:00:00]} 30. cxb6 $4 {[%emt 0:00:00][%mdl 8192] Weighted Error Value: White=0.50/Black=0.55} ({Don't play} 30. Rd2 bxc5 31. bxc5 (31. Nxg4 Bxg4 32. Qxg4 Rxd6 $11) 31... Qxc5) (30. Rc4 $18) 0-1